bitfinex-derivatives/quotes_BTCF0:USTF0_20250614
["timestamp","ask_amount","ask_price","bid_price","bid_amount"]
[1749866210976,0.002,105520.0,105510.0,3.36436507]
[1749866211474,0.002,105520.0,105510.0,3.34958857]
[1749866211675,0.002,105520.0,105510.0,3.36436507]
[1749866211970,0.002,105520.0,105510.0,3.34958857]
[1749866212171,0.002,105520.0,105510.0,3.36439746]
[1749866212571,0.002,105520.0,105510.0,3.35357285]
[1749866212966,0.002,105520.0,105510.0,3.34958857]
[1749866213165,0.002,105520.0,105510.0,3.33876396]
[1749866213368,0.002,105520.0,105510.0,3.36439419]
[1749866213573,0.002,105520.0,105510.0,3.35357239]
[1749866213765,0.002,105520.0,105510.0,3.36439419]
[1749866213970,0.002,105520.0,105510.0,3.34958576]
[1749866214277,0.1914468,105520.0,105510.0,3.36439419]
[1749866214965,0.1914468,105520.0,105510.0,3.35357239]
[1749866215170,0.1914468,105520.0,105510.0,3.36438002]
[1749866216779,0.1914468,105520.0,105510.0,3.32011761]
[1749866216982,0.1914468,105520.0,105510.0,3.30930997]
[1749866217180,0.1914468,105520.0,105510.0,3.19972554]
[1749866217381,0.1914468,105520.0,105510.0,3.2253416]
[1749866217783,0.1914468,105520.0,105510.0,3.21053318]
[1749866218385,0.1914468,105520.0,105510.0,3.21453397]
[1749866218585,0.1914468,105520.0,105510.0,3.22534161]
[1749866219579,0.1914468,105520.0,105510.0,3.21053318]
[1749866219782,0.1914468,105520.0,105510.0,3.21453397]
[1749866220084,0.1914468,105520.0,105510.0,3.2253416]
[1749866220286,0.1914468,105520.0,105510.0,3.22528162]
[1749866220476,0.1914468,105520.0,105510.0,3.21045317]
[1749866220682,0.1914468,105520.0,105510.0,3.22520163]
[1749866221180,0.1914468,105520.0,105510.0,3.19964554]
[1749866221483,0.1914468,105520.0,105510.0,3.21439399]
[1749866221679,0.1914468,105520.0,105510.0,3.19964554]
[1749866221885,0.1914468,105520.0,105510.0,3.21045318]
[1749866222090,0.1914468,105520.0,105510.0,3.22520163]
[1749866222680,0.1914468,105520.0,105510.0,3.22518958]
[1749866223083,0.1914468,105520.0,105510.0,3.19964554]
[1749866223279,0.1914468,105520.0,105510.0,3.21438194]
[1749866223480,0.1914468,105520.0,105510.0,3.22514687]
[1749866223687,0.2247468,105520.0,105510.0,3.21434194]
[1749866223984,0.2247468,105520.0,105510.0,3.22514687]
[1749866224176,0.2247468,105520.0,105510.0,3.19960554]
[1749866224380,0.2247468,105520.0,105510.0,3.21041047]
[1749866224582,0.2247468,105520.0,105510.0,3.22514687]
[1749866225089,0.2247468,105520.0,105510.0,3.21434194]
[1749866225290,0.2247468,105520.0,105510.0,3.22514687]
[1749866225584,0.2247468,105520.0,105510.0,2.40379047]
[1749866225784,0.2879468,105520.0,105510.0,3.11844194]
[1749866225988,0.2879468,105520.0,105510.0,3.11844209]
[1749866226191,0.2879468,105520.0,105510.0,3.12924712]
[1749866226396,0.2879468,105520.0,105510.0,3.12923565]
[1749866226585,0.2879468,105520.0,105510.0,3.11843059]
[1749866226790,0.2879468,105520.0,105510.0,3.10351949]
[1749866227101,0.2879468,105520.0,105510.0,3.11434214]
[1749866227287,0.2879468,105520.0,105510.0,3.0996088]
[1749866227492,0.2879468,105520.0,105510.0,3.114344]
[1749866227693,0.2247468,105520.0,105510.0,3.145544]
[1749866227893,0.2247468,105520.0,105510.0,3.16593149]
[1749866228096,0.2247468,105520.0,105510.0,3.20924151]
[1749866228288,0.0353,105520.0,105510.0,3.19842715]
[1749866228595,0.0353,105520.0,105510.0,3.20926244]
[1749866228793,0.002,105520.0,105510.0,3.20929203]
[1749866228993,0.002,105520.0,105510.0,3.209292]
[1749866229194,0.002,105520.0,105510.0,3.2226223]
[1749866229395,0.002,105520.0,105510.0,3.21178363]
[1749866229598,0.002,105520.0,105510.0,3.2226188]
[1749866229792,0.002,105520.0,105510.0,3.20785742]
[1749866229996,0.002,105520.0,105510.0,3.20785738]
[1749866230197,0.002,105520.0,105510.0,3.20785712]
[1749866230398,0.002,105520.0,105510.0,3.2226185]
[1749866230698,0.002,105520.0,105510.0,3.22261838]
[1749866230902,0.002,105520.0,105510.0,3.22261848]
[1749866231399,0.1914468,105520.0,105510.0,2.25374362]
[1749866231602,0.1914468,105520.0,105510.0,3.22249851]
[1749866231798,0.2231468,105520.0,105510.0,3.2224985]
[1749866232105,0.0337,105520.0,105510.0,3.1969231]
[1749866232300,0.0337,105520.0,105510.0,3.2225448]
[1749866232301,0.2231468,105520.0,105510.0,3.2225448]
[1749866232493,0.2231468,105520.0,105510.0,3.20919365]
[1749866232693,0.2231468,105520.0,105510.0,3.21170933]
[1749866232898,0.2231468,105520.0,105510.0,3.22254415]
[1749866233088,0.2231468,105520.0,105510.0,3.21170928]
[1749866233298,0.2231468,105520.0,105510.0,2.26460806]
[1749866233497,0.2231468,105520.0,105510.0,3.22252806]
[1749866233698,0.2231468,105520.0,105510.0,3.2225281]
[1749866234006,0.2231468,105520.0,105510.0,3.19690558]
[1749866234195,0.2231468,105520.0,105510.0,3.22253274]
[1749866234395,0.2231468,105520.0,105510.0,3.2091702]
[1749866234603,0.2231468,105520.0,105510.0,3.20774603]
[1749866234796,0.2231468,105520.0,105510.0,3.2225086]
[1749866234997,0.2231468,105520.0,105510.0,2.2645886]
[1749866235297,0.2545468,105520.0,105510.0,3.22250846]
[1749866235602,0.2545468,105520.0,105510.0,3.22251025]
[1749866235802,0.2545468,105520.0,105510.0,3.21167457]
[1749866236103,0.2545468,105520.0,105510.0,3.19691409]
[1749866236305,0.2545468,105520.0,105510.0,3.19691406]
[1749866236502,0.2545468,105520.0,105510.0,3.22251492]
[1749866237099,0.2545468,105520.0,105510.0,3.19691409]
[1749866237297,0.2545468,105520.0,105510.0,3.20917278]
[1749866237597,0.2545468,105520.0,105510.0,3.2225154]
[1749866238404,0.2545468,105520.0,105510.0,3.22251693]
[1749866238711,0.2545468,105520.0,105510.0,3.22251692]
[1749866239200,0.2545468,105520.0,105510.0,3.22251455]
[1749866239402,0.2545468,105520.0,105510.0,2.17268919]
[1749866239602,0.2869468,105520.0,105510.0,3.12747674]
[1749866239800,0.2869468,105520.0,105510.0,3.11271239]
[1749866240000,0.2869468,105520.0,105510.0,3.12747761]
[1749866240202,0.2869468,105520.0,105510.0,3.15701209]
[1749866240501,0.2869468,105520.0,105510.0,3.12890509]
[1749866240705,0.2869468,105520.0,105510.0,3.15701213]
[1749866240899,0.2869468,105520.0,105510.0,3.14367032]
[1749866241096,0.2869468,105520.0,105510.0,3.14617402]
[1749866241299,0.2869468,105520.0,105510.0,3.11806699]
[1749866242006,0.2869468,105520.0,105510.0,3.15701246]
[1749866242204,0.2869468,105520.0,105510.0,3.15701228]
[1749866242410,0.2869468,105520.0,105510.0,3.14617514]
[1749866242710,0.2869468,105520.0,105510.0,3.15701228]
[1749866242906,0.2869468,105520.0,105510.0,3.1570123]
[1749866243106,0.2869468,105520.0,105510.0,3.14617516]
[1749866243303,0.2869468,105520.0,105510.0,3.10211945]
[1749866243505,0.2869468,105520.0,105510.0,3.12772409]
[1749866243699,0.2869468,105520.0,105510.0,3.08441152]
[1749866243903,0.2869468,105520.0,105510.0,2.9955683]
[1749866244106,0.2869468,105520.0,105510.0,2.98080082]
[1749866244301,0.2869468,105520.0,105510.0,2.99556835]
[1749866244506,0.2869468,105520.0,105510.0,2.99556834]
[1749866244807,0.2869468,105520.0,105510.0,3.1277591]
[1749866245111,0.2869468,105520.0,105510.0,2.12652823]
[1749866245310,0.2869468,105520.0,105510.0,2.99552486]
[1749866246010,0.2869468,105520.0,105510.0,3.10354047]
[1749866246206,0.2869468,105520.0,105510.0,3.09961355]
[1749866246412,0.2869468,105520.0,105510.0,3.11295161]
[1749866246606,0.2869468,105520.0,105510.0,3.09961355]
[1749866246807,0.2869468,105520.0,105510.0,3.11437761]
[1749866247007,0.2869468,105520.0,105510.0,3.10211468]
[1749866247213,0.2869468,105520.0,105510.0,3.1143773]
[1749866247415,0.2869468,105520.0,105510.0,3.11687871]
[1749866247615,0.2869468,105520.0,105510.0,3.12771555]
[1749866247817,0.002,105520.0,105510.0,2.74044987]
[1749866248017,0.002,105520.0,105510.0,2.91139088]
[1749866248215,0.4267932,105540.0,105530.0,0.1894287]
[1749866248514,0.4267932,105540.0,105530.0,1.6971708]
[1749866248714,0.4267932,105540.0,105530.0,1.69717078]
[1749866248911,0.4267932,105540.0,105530.0,1.68633528]
[1749866249112,0.4267932,105540.0,105530.0,1.69717075]
[1749866249816,0.4407932,105540.0,105530.0,1.69817075]
[1749866250018,0.4497932,105540.0,105530.0,1.69817121]
[1749866250217,0.4497932,105540.0,105530.0,1.6834086]
[1749866250411,0.4497932,105540.0,105530.0,1.67257313]
[1749866250613,0.4497932,105540.0,105530.0,1.68340673]
[1749866250817,0.4497932,105540.0,105530.0,1.6834049]
[1749866251111,0.4497932,105540.0,105530.0,1.52558623]
[1749866251311,0.4497932,105540.0,105530.0,1.53641801]
[1749866251517,0.4497932,105540.0,105530.0,1.52558623]
[1749866251713,0.4497932,105540.0,105530.0,1.53641695]
[1749866251916,0.4497932,105540.0,105530.0,1.53641696]
[1749866252521,0.4497932,105540.0,105530.0,1.53639398]
[1749866252814,0.4497932,105540.0,105530.0,1.63928765]
[1749866253017,0.4497932,105540.0,105530.0,1.62847986]
[1749866253220,0.4497932,105540.0,105530.0,1.63928765]
[1749866253618,0.4497932,105540.0,105530.0,1.63928764]
[1749866254121,0.4497932,105540.0,105530.0,1.63928765]
[1749866254313,0.4497932,105540.0,105530.0,1.62847986]
[1749866254813,0.4497932,105540.0,105530.0,1.63928744]
[1749866255714,0.4497932,105540.0,105530.0,1.62847986]
[1749866255909,0.4497932,105540.0,105530.0,1.63928744]
[1749866256308,0.4497932,105540.0,105530.0,1.6392874]
[1749866256513,0.4497932,105540.0,105530.0,1.62847986]
[1749866256713,0.4497932,105540.0,105530.0,1.68361838]
[1749866256913,0.4497932,105540.0,105530.0,1.6836202]
[1749866257120,0.4497932,105540.0,105530.0,1.68362118]
[1749866257323,0.4497932,105540.0,105530.0,1.98202142]
[1749866257522,0.4497932,105540.0,105530.0,1.98202144]
[1749866257723,0.4497932,105540.0,105530.0,1.98202145]
[1749866257918,0.4497932,105540.0,105530.0,1.98202146]
[1749866258114,0.4497932,105540.0,105530.0,1.97121086]
[1749866259222,0.4497932,105540.0,105530.0,1.98201568]
[1749866259426,0.4497932,105540.0,105530.0,1.98201565]
[1749866260042,0.4497932,105540.0,105530.0,1.98201032]
[1749866261323,0.4497932,105540.0,105530.0,1.98200953]
[1749866261521,0.4497932,105540.0,105530.0,1.98200954]
[1749866261720,0.4497932,105540.0,105530.0,1.97121086]
[1749866262523,0.4497932,105540.0,105530.0,1.98200683]
[1749866262724,0.4497932,105540.0,105530.0,1.97121086]
[1749866262925,0.4497932,105540.0,105530.0,1.98200683]
[1749866263126,0.4497932,105540.0,105530.0,1.98198363]
[1749866263430,0.4497932,105540.0,105530.0,1.97121086]
[1749866263629,0.4497932,105540.0,105530.0,1.98198363]
[1749866264227,0.4497932,105540.0,105530.0,1.97121086]
[1749866264531,0.4497932,105540.0,105530.0,1.98198361]
[1749866264730,0.4497932,105540.0,105530.0,1.98198363]
[1749866265033,0.4497932,105540.0,105530.0,1.97121086]
[1749866265230,0.4497932,105540.0,105530.0,1.9654261]
[1749866265728,0.4497932,105540.0,105530.0,1.95465333]
[1749866265925,0.4497932,105540.0,105530.0,1.94627966]
[1749866266129,0.4497932,105540.0,105530.0,1.94627447]
[1749866266330,0.4497932,105540.0,105530.0,1.93550658]
[1749866266530,0.4497932,105540.0,105530.0,1.94627446]
[1749866266735,0.4497932,105540.0,105530.0,1.90194346]
[1749866267329,0.4497932,105540.0,105530.0,1.91271145]
[1749866268134,0.4497932,105540.0,105530.0,1.91271144]
[1749866268335,0.4497932,105540.0,105530.0,1.91271112]
[1749866268532,0.4497932,105540.0,105530.0,1.91271113]
[1749866269134,0.4497932,105540.0,105530.0,1.90194346]
[1749866269328,0.4497932,105540.0,105530.0,1.91271153]
[1749866269730,0.4497932,105540.0,105530.0,1.90194346]
[1749866270237,0.4497932,105540.0,105530.0,1.91271239]
[1749866270434,0.4497932,105540.0,105530.0,1.90194346]
[1749866270936,0.4497932,105540.0,105530.0,1.91271235]
[1749866271136,0.4497932,105540.0,105530.0,1.91271238]
[1749866271436,0.4497932,105540.0,105530.0,1.90194346]
[1749866271830,0.4497932,105540.0,105530.0,0.94414346]
[1749866272038,0.4497932,105540.0,105530.0,1.91235264]
[1749866272237,0.4497932,105540.0,105530.0,1.90158346]
[1749866272537,0.4497932,105540.0,105530.0,1.91235273]
[1749866272836,0.4497932,105540.0,105530.0,1.91235385]
[1749866273038,0.4497932,105540.0,105530.0,1.91235403]
[1749866273337,0.4497932,105540.0,105530.0,1.91235406]
[1749866273537,0.4497932,105540.0,105530.0,1.94365406]
[1749866274634,0.4497932,105540.0,105530.0,1.93288346]
[1749866274939,0.4497932,105540.0,105530.0,1.94365406]
[1749866275135,0.4497932,105540.0,105530.0,1.93288346]
[1749866275634,0.4497932,105540.0,105530.0,1.94365411]
[1749866275838,0.4497932,105540.0,105530.0,1.93288346]
[1749866276736,0.4497932,105540.0,105530.0,2.00280165]
[1749866276938,0.4497932,105540.0,105530.0,2.00280166]
[1749866277138,0.4497932,105540.0,105530.0,2.00280158]
[1749866277334,0.4497932,105540.0,105530.0,1.99203021]
[1749866277536,0.4497932,105540.0,105530.0,2.09152019]
[1749866277937,0.4497932,105540.0,105530.0,2.09154871]
[1749866278338,0.4497932,105540.0,105530.0,2.09146871]
[1749866278637,0.4497932,105540.0,105530.0,2.09146889]
[1749866278836,0.4497932,105540.0,105530.0,2.08067034]
[1749866279038,0.4497932,105540.0,105530.0,2.09146889]
[1749866279238,0.4497932,105540.0,105530.0,2.08067034]
[1749866279640,0.4497932,105540.0,105530.0,2.09146888]
[1749866279843,0.4497932,105540.0,105530.0,2.08067034]
[1749866280545,0.4497932,105540.0,105530.0,1.73066878]
[1749866280741,0.4497932,105540.0,105530.0,1.73066899]
[1749866281142,0.4497932,105540.0,105530.0,1.73066892]
[1749866281446,0.4497932,105540.0,105530.0,1.7306689]
[1749866281647,0.4497932,105540.0,105530.0,2.09146898]
[1749866282048,0.4497932,105540.0,105530.0,2.08067034]
[1749866282238,1.1205932,105540.0,105530.0,0.46386013]
[1749866282550,0.8105932,105540.0,105530.0,1.60909661]
[1749866282850,0.8105932,105540.0,105530.0,1.60912752]
[1749866283047,0.8105932,105540.0,105530.0,1.60912747]
[1749866283545,0.8105932,105540.0,105530.0,1.60908928]
[1749866283847,0.8105932,105540.0,105530.0,1.60909051]
[1749866284149,0.8105932,105540.0,105530.0,1.60908505]
[1749866284450,0.8105932,105540.0,105530.0,1.58507453]
[1749866284650,0.8105932,105540.0,105530.0,1.59828351]
[1749866284850,0.4497932,105540.0,105530.0,1.59828357]
[1749866285147,0.8105932,105540.0,105530.0,1.55587491]
[1749866285348,0.8105932,105540.0,105530.0,1.55826467]
[1749866285649,0.4497932,105540.0,105530.0,1.56906008]
[1749866285844,0.8105932,105540.0,105530.0,1.57306846]
[1749866286050,0.8105932,105540.0,105530.0,1.57307745]
[1749866286353,0.8105932,105540.0,105530.0,1.58387845]
[1749866286651,0.8105932,105540.0,105530.0,1.58391393]
[1749866286841,0.4497932,105540.0,105530.0,1.58391392]
[1749866287043,0.4497932,105540.0,105530.0,1.26148326]
[1749866287246,0.4497932,105540.0,105530.0,1.27231295]
[1749866287442,0.4497932,105540.0,105530.0,1.63311246]
[1749866287642,0.4497932,105540.0,105530.0,1.60747453]
[1749866287844,0.4497932,105540.0,105530.0,1.62069873]
[1749866288144,0.4497932,105540.0,105530.0,1.64633592]
[1749866288355,0.3383368,105540.0,105530.0,1.63549989]
[1749866288543,0.2597807,105540.0,105530.0,1.79087132]
[1749866288745,0.2597807,105540.0,105530.0,1.76542128]
[1749866288942,0.2597807,105540.0,105530.0,1.79087033]
[1749866289140,0.2597807,105540.0,105530.0,1.78022864]
[1749866289347,0.2597807,105540.0,105530.0,1.77606311]
[1749866289651,0.2597807,105540.0,105530.0,1.7908706]
[1749866289853,0.2597807,105540.0,105530.0,1.80401787]
[1749866290150,0.2597807,105540.0,105530.0,1.7760631]
[1749866290351,0.2597807,105540.0,105530.0,1.80401573]
[1749866290548,0.2597807,105540.0,105530.0,1.79337404]
[1749866290749,0.2597807,105540.0,105530.0,1.80432557]
[1749866290952,0.2597807,105540.0,105530.0,1.7895181]
[1749866291143,0.2597807,105540.0,105530.0,1.77887494]
[1749866291350,0.2597807,105540.0,105530.0,1.80432444]
[1749866291656,0.2597807,105540.0,105530.0,1.80432502]
[1749866291953,0.2597807,105540.0,105530.0,1.79087078]
[1749866292150,0.2597807,105540.0,105530.0,1.80432503]
[1749866292347,0.2597807,105540.0,105530.0,1.79368303]
[1749866292554,0.2597807,105540.0,105530.0,1.80432499]
[1749866292752,0.2597807,105540.0,105530.0,1.79367999]
[1749866292954,0.2597807,105540.0,105530.0,1.77884264]
[1749866293150,0.2597807,105540.0,105530.0,1.80428601]
[1749866293343,0.2597807,105540.0,105530.0,1.78947853]
[1749866293652,0.2597807,105540.0,105530.0,1.80428688]
[1749866293847,0.2597807,105540.0,105530.0,1.80428694]
[1749866294053,0.2597807,105540.0,105530.0,1.80428515]
[1749866294349,0.2597807,105540.0,105530.0,1.78947831]
[1749866294554,0.2597807,105540.0,105530.0,1.804285]
[1749866294751,0.2124271,105540.0,105530.0,1.78947741]
[1749866294955,0.023,105540.0,105530.0,2.17788673]
[1749866295151,0.2124108,105540.0,105530.0,2.10121835]
[1749866295353,0.023,105540.0,105530.0,2.12931362]
[1749866295557,0.023,105540.0,105530.0,2.11602361]
[1749866295749,0.023,105540.0,105530.0,2.11445556]
[1749866295750,0.2124109,105540.0,105530.0,2.11445556]
[1749866296048,0.023,105540.0,105530.0,2.11602357]
[1749866296255,0.01376124,105540.0,105530.0,2.14816185]
[1749866296557,0.01376124,105540.0,105530.0,2.1455952]
[1749866296751,0.01376124,105540.0,105530.0,2.10374305]
[1749866296951,0.01376124,105540.0,105530.0,2.11601145]
[1749866297153,0.01376124,105540.0,105530.0,2.11437625]
[1749866297350,0.01376124,105540.0,105530.0,2.11854914]
[1749866297561,0.01376124,105540.0,105530.0,2.11437616]
[1749866297855,0.01376124,105540.0,105530.0,2.11854666]
[1749866298054,0.00014186,105550.0,105540.0,0.1894108]
[1749866298361,0.18953476,105550.0,105540.0,0.95809363]
[1749866298662,0.18953476,105550.0,105540.0,0.94747434]
[1749866298856,0.00014186,105550.0,105540.0,0.97289874]
[1749866299155,0.18953486,105550.0,105540.0,0.97289822]
[1749866299456,0.01014186,105550.0,105540.0,0.97389953]
[1749866299660,0.01014186,105550.0,105540.0,0.97389949]
[1749866299862,0.01014186,105550.0,105540.0,0.95909379]
[1749866300061,0.01014186,105550.0,105540.0,0.9600938]
[1749866300355,0.01714186,105550.0,105540.0,0.9600938]
[1749866300555,0.01714186,105550.0,105540.0,1.76827434]
[1749866300763,0.01714186,105550.0,105540.0,1.77889385]
[1749866301156,0.01714186,105550.0,105540.0,1.76827434]
[1749866301359,0.01714186,105550.0,105540.0,1.77889372]
[1749866301759,0.01714186,105550.0,105540.0,1.76827434]
[1749866302062,0.01714186,105550.0,105540.0,1.7788937]
[1749866302262,0.01714186,105550.0,105540.0,1.82318006]
[1749866302862,0.01714186,105550.0,105540.0,1.86760303]
[1749866303157,0.01714186,105550.0,105540.0,2.16598823]
[1749866303358,0.189372,105570.0,105560.0,0.189375]
[1749866303567,0.189372,105570.0,105560.0,1.60578449]
[1749866303758,0.189372,105570.0,105560.0,2.51074272]
[1749866303957,0.189372,105570.0,105560.0,2.52134405]
[1749866304161,0.189372,105570.0,105560.0,2.52134388]
[1749866304358,0.189372,105570.0,105560.0,2.46648188]
[1749866304559,0.197372,105570.0,105560.0,2.47808301]
[1749866304759,0.197372,105570.0,105560.0,2.46748188]
[1749866304958,0.197372,105570.0,105560.0,2.47808314]
[1749866305159,0.234872,105570.0,105560.0,2.47808316]
[1749866305362,0.234872,105570.0,105560.0,2.47808317]
[1749866305563,0.234872,105570.0,105560.0,2.46748188]
[1749866305969,0.31073538,105570.0,105560.0,2.46748188]
[1749866306165,0.31073538,105570.0,105560.0,2.11728339]
[1749866306369,0.32032413,105570.0,105560.0,2.423735]
[1749866306570,0.32032413,105570.0,105560.0,2.46728637]
[1749866306767,0.32032413,105570.0,105560.0,2.43433646]
[1749866306966,0.32032413,105570.0,105560.0,2.43433645]
[1749866307169,0.32032413,105570.0,105560.0,2.43430966]
[1749866307365,0.32032413,105570.0,105560.0,2.43430971]
[1749866307671,0.32032413,105570.0,105560.0,2.43430972]
[1749866307863,0.32032413,105570.0,105560.0,2.423735]
[1749866308565,0.32032413,105570.0,105560.0,2.4343096]
[1749866309170,0.32032413,105570.0,105560.0,2.43430963]
[1749866309565,0.32032413,105570.0,105560.0,2.423735]
[1749866309870,0.32032413,105570.0,105560.0,2.4343097]
[1749866310474,0.32032413,105570.0,105560.0,2.423735]
[1749866310665,0.32032413,105570.0,105560.0,2.43430963]
[1749866311468,0.32032413,105570.0,105560.0,2.423735]
[1749866311674,0.32032413,105570.0,105560.0,2.43431016]
[1749866312077,0.32032413,105570.0,105560.0,2.43431008]
[1749866312573,0.32032413,105570.0,105560.0,2.4343071]
[1749866313163,0.32032413,105570.0,105560.0,2.43430703]
[1749866313368,0.32032413,105570.0,105560.0,2.423735]
[1749866313569,0.32032413,105570.0,105560.0,2.73270686]
[1749866313870,0.32032413,105570.0,105560.0,2.722135]
[1749866314065,0.32032413,105570.0,105560.0,2.73270661]
[1749866314370,0.32032413,105570.0,105560.0,2.722135]
[1749866314772,0.32032413,105570.0,105560.0,2.73270646]
[1749866315074,0.32032413,105570.0,105560.0,2.722135]
[1749866315575,0.32032413,105570.0,105560.0,2.73270644]
[1749866316776,0.32032413,105570.0,105560.0,2.77620127]
[1749866316984,0.32032413,105570.0,105560.0,2.76562983]
[1749866317275,0.32032413,105570.0,105560.0,2.77620116]
[1749866317679,0.32032413,105570.0,105560.0,2.76562983]
[1749866318181,0.32032413,105570.0,105560.0,2.76538983]
[1749866318477,0.32032413,105570.0,105560.0,2.77596117]
[1749866319170,0.32032413,105570.0,105560.0,2.77596114]
[1749866320087,0.13095213,105570.0,105560.0,2.77596114]
[1749866320278,0.013,105570.0,105560.0,3.17014489]
[1749866320679,0.013,105570.0,105560.0,3.15957358]
[1749866320983,0.013,105570.0,105560.0,3.17013858]
[1749866321472,0.005,105570.0,105560.0,3.15857358]
[1749866321774,0.006,105570.0,105560.0,3.16457358]
[1749866322978,0.001,105570.0,105560.0,3.16457358]
[1749866323178,0.002,105570.0,105560.0,3.23453044]
[1749866323476,0.002,105570.0,105560.0,3.24507483]
[1749866323680,0.002,105570.0,105560.0,3.23453044]
[1749866323882,0.002,105570.0,105560.0,3.2450747]
[1749866324082,0.002,105570.0,105560.0,3.23453044]
[1749866324283,0.002,105570.0,105560.0,3.24507477]
[1749866324485,0.002,105570.0,105560.0,3.24507481]
[1749866324785,0.002,105570.0,105560.0,3.24507661]
[1749866324980,0.002,105570.0,105560.0,3.23453044]
[1749866325181,0.002,105570.0,105560.0,3.20089283]
[1749866325390,0.002,105570.0,105560.0,3.19034669]
[1749866325576,0.002,105570.0,105560.0,3.27905657]
[1749866325888,0.002,105570.0,105560.0,3.28960222]
[1749866326182,0.002,105570.0,105560.0,3.27906184]
[1749866326488,0.002,105570.0,105560.0,3.28955881]
[1749866326787,0.002,105570.0,105560.0,3.27906184]
[1749866327279,0.002,105570.0,105560.0,3.2895467]
[1749866327683,0.002,105570.0,105560.0,3.28954676]
[1749866327880,0.00014186,105580.0,105570.0,0.1893571]
[1749866328085,0.00014186,105580.0,105570.0,1.13967534]
[1749866328479,0.00014186,105580.0,105570.0,1.43807534]
[1749866328680,0.00014186,105580.0,105570.0,1.48234273]
[1749866328981,0.00014186,105580.0,105570.0,1.48234127]
[1749866329180,0.00414186,105580.0,105570.0,1.43812251]
[1749866329585,0.00414186,105580.0,105570.0,1.45292318]
[1749866329779,0.00414186,105580.0,105570.0,1.45292298]
[1749866329979,0.00414186,105580.0,105570.0,1.5294517]
[1749866330580,0.00414186,105580.0,105570.0,1.52941884]
[1749866330776,0.00414186,105580.0,105570.0,1.4528896]
[1749866330985,0.00414186,105580.0,105570.0,1.42759061]
[1749866331189,0.00414186,105580.0,105570.0,1.43812217]
[1749866331392,0.00414186,105580.0,105570.0,1.44235795]
[1749866331687,0.00414186,105580.0,105570.0,1.45288205]
[1749866331888,0.00414186,105580.0,105570.0,1.45288204]
[1749866332085,0.00414186,105580.0,105570.0,1.44235795]
[1749866332286,0.00414186,105580.0,105570.0,1.42759061]
[1749866332681,0.00414186,105580.0,105570.0,1.4381147]
[1749866332887,0.00414186,105580.0,105570.0,1.45288205]
[1749866333087,0.00414186,105580.0,105570.0,1.42759061]
[1749866333280,0.00414186,105580.0,105570.0,1.4528821]
[1749866333686,0.00414186,105580.0,105570.0,1.45288206]
[1749866333884,0.00414186,105580.0,105570.0,1.4381147]
[1749866334080,0.00414186,105580.0,105570.0,1.44235802]
[1749866334284,0.19348096,105580.0,105570.0,1.43811473]
[1749866334485,0.19348096,105580.0,105570.0,2.02184041]
[1749866334688,0.25728096,105580.0,105570.0,2.34660935]
[1749866334889,0.25728096,105580.0,105570.0,2.35712139]
[1749866335105,0.28828096,105580.0,105570.0,2.35712146]
[1749866335389,0.28828096,105580.0,105570.0,2.35712131]
[1749866335587,0.28828096,105580.0,105570.0,2.35712126]
[1749866335789,0.28828096,105580.0,105570.0,2.34659583]
[1749866335992,0.28828096,105580.0,105570.0,2.33184041]
[1749866336194,0.28828096,105580.0,105570.0,2.34659583]
[1749866336491,0.28828096,105580.0,105570.0,2.35712126]
[1749866336691,0.28828096,105580.0,105570.0,2.34236583]
[1749866336886,0.28828096,105580.0,105570.0,2.33184041]
[1749866337193,0.28828096,105580.0,105570.0,2.34659583]
[1749866337594,0.28828096,105580.0,105570.0,1.01011583]
[1749866337794,0.28828096,105580.0,105570.0,1.90756309]
[1749866338096,0.28828096,105580.0,105570.0,1.90333598]
[1749866338394,0.28828096,105580.0,105570.0,0.94685618]
[1749866338696,0.28828096,105580.0,105570.0,0.09829908]
[1749866338886,0.28828096,105580.0,105570.0,1.22776526]
[1749866339088,0.28828096,105580.0,105570.0,1.1892972]
[1749866339291,0.28828096,105580.0,105570.0,1.21724318]
[1749866339588,0.28828096,105580.0,105570.0,1.2040558]
[1749866339782,0.28828096,105580.0,105570.0,1.21724592]
[1749866339987,0.28828096,105580.0,105570.0,1.20248732]
[1749866340189,0.61828096,105580.0,105570.0,0.08197934]
[1749866340486,1.52524096,105580.0,105570.0,0.08198451]
[1749866340691,1.52524096,105580.0,105570.0,0.08198494]
[1749866340893,1.52524096,105580.0,105570.0,0.06744192]
[1749866341085,1.52524096,105580.0,105570.0,0.0822579]
[1749866341795,1.52524096,105580.0,105570.0,0.07174207]
[1749866341994,1.52524096,105580.0,105570.0,0.06750369]
[1749866342193,0.1893571,105570.0,105560.0,0.18144]
[1749866342394,0.7079424,105570.0,105560.0,0.05404354]
[1749866342600,0.7552855,105570.0,105560.0,0.0674971]
[1749866342797,0.7552855,105570.0,105560.0,0.08231539]
[1749866342999,0.7552855,105570.0,105560.0,0.08231534]
[1749866343294,0.7752855,105570.0,105560.0,0.08235694]
[1749866343494,0.8362855,105570.0,105560.0,0.07355206]
[1749866343694,0.8362855,105570.0,105560.0,0.08835734]
[1749866343896,0.8362855,105570.0,105560.0,0.07355352]
[1749866344096,1.0962855,105570.0,105560.0,0.08845179]
[1749866344297,0.7562855,105570.0,105560.0,0.07484976]
[1749866344499,0.8362855,105570.0,105560.0,0.08845179]
[1749866344795,1.1062855,105570.0,105560.0,0.07781628]
[1749866345098,0.8272855,105570.0,105560.0,0.10033529]
[1749866345394,0.7572855,105570.0,105560.0,0.07501696]
[1749866345592,0.8272855,105570.0,105560.0,0.08553597]
[1749866345898,0.8272855,105570.0,105560.0,0.07501697]
[1749866346199,0.8272855,105570.0,105560.0,0.0461276]
[1749866346200,1.4220135,105570.0,105560.0,0.0461276]
[1749866346391,1.4220135,105570.0,105560.0,0.04612796]
[1749866346586,1.4220135,105570.0,105560.0,0.04619227]
[1749866346792,1.4220135,105570.0,105560.0,0.03138635]
[1749866346991,1.4220135,105570.0,105560.0,0.03138633]
[1749866347597,1.4220135,105570.0,105560.0,0.018]
[1749866347792,1.4220135,105570.0,105560.0,0.04619232]
[1749866347992,1.4220135,105570.0,105560.0,0.03280603]
[1749866348192,1.4220135,105570.0,105560.0,0.0461923]
[1749866348394,1.4220135,105570.0,105560.0,0.018]
[1749866348594,1.4220135,105570.0,105560.0,0.0461923]
[1749866348794,1.4220135,105570.0,105560.0,0.03280603]
[1749866349099,1.4220135,105570.0,105560.0,0.03138627]
[1749866349295,1.4220135,105570.0,105560.0,0.03280603]
[1749866349501,1.4220135,105570.0,105560.0,0.0462583]
[1749866349702,1.4220135,105570.0,105560.0,0.03280603]
[1749866350001,1.4220135,105570.0,105560.0,0.04625835]
[1749866350300,1.1720135,105570.0,105560.0,0.04625835]
[1749866350603,1.1720135,105570.0,105560.0,0.0314523]
[1749866350902,1.1720135,105570.0,105560.0,0.04628443]
[1749866351103,1.1720135,105570.0,105560.0,0.018]
[1749866351402,1.1720135,105570.0,105560.0,0.04624091]
[1749866351601,1.1720135,105570.0,105560.0,0.04623983]